fUSD/lending_fUSD_20260228
["ID","MTS","AMOUNT","RATE_DAILY","PERIOD"]
[406876546,1772261439675,-151.0,0.0001,2]
[406876548,1772261439685,-309.28949765,0.0001,2]
[406876550,1772261439694,-151.0,0.0001,2]
[406876554,1772261439703,-151.0,0.0001,2]
[406876556,1772261439713,-151.0,0.0001,2]
[406876558,1772261439722,-151.0,0.0001,2]
[406876560,1772261439731,-151.0,0.0001,2]
[406876562,1772261439741,-151.0,0.0001,2]
[406876564,1772261439751,-151.0,0.0001,2]
[406876566,1772261439760,-151.0,0.0001,2]
[406876568,1772261439770,-151.0,0.0001,2]
[406876570,1772261439785,-151.0,0.0001,2]
[406876573,1772261439795,-151.0,0.0001,2]
[406876574,1772261439806,-726.10987878,0.0001,2]
[406876576,1772261439815,-726.10987878,0.0001,2]
[406876579,1772261439826,-726.10987878,0.0001,2]
[406876580,1772261439837,-151.0,0.0001,2]
[406876583,1772261439847,-151.0,0.0001,2]
[406876584,1772261439856,-1000.0,0.00010197,2]
[406876586,1772261439866,-500.0,0.00010274,2]
[406876588,1772261439877,-221.2,0.00010313,2]
[406876590,1772261439887,-281.0,0.00010493,2]
[406876592,1772261439898,-587.0,0.00010493,2]
[406876594,1772261439908,-2351.0,0.00010493,2]
[406876596,1772261439917,-1261.91,0.0001052,2]
[406876598,1772261439926,-433.0,0.00010526,2]
[406876600,1772261439935,-500.0,0.00010548,2]
[406876602,1772261439944,-64735.32,0.00010648,2]
[406876604,1772261439954,-500.0,0.00010822,2]
[406876606,1772261439964,-2655.48248453,0.000109,2]
[406876608,1772261439973,-502.46010637,0.00010959,2]
[406876610,1772261439983,-166.66,0.00010959,2]
[406876612,1772261439993,-166.66,0.00011068,2]
[406876614,1772261440003,-500.0,0.00011096,2]
[406876616,1772261440016,-7348.73262387,0.00011099,2]
[406876618,1772261440029,-7348.73262382,0.00011099,2]
[406876620,1772261440039,-166.66,0.00011178,2]
[406876622,1772261440049,-166.66,0.000112,2]
[406876624,1772261440059,-166.66,0.00011288,2]
[406876626,1772261440068,-7348.73262382,0.0001132,2]
[406876628,1772261440078,-1000.0,0.0001133,2]
[406876630,1772261440088,-500.0,0.0001137,2]
[406876632,1772261440097,-166.66,0.00011397,2]
[406876634,1772261440107,-500.0,0.00011436,2]
[406876636,1772261440117,-500.0,0.00011491,2]
[406876638,1772261440127,-166.66,0.00011507,2]
[406876640,1772261440137,-823.0,0.00011542,2]
[406876642,1772261440147,-1612.0,0.00011542,2]
[406876644,1772261440156,-500.0,0.00011546,2]
[406876646,1772261440165,-166.66,0.0001157,2]
[406876648,1772261440175,-459.0,0.00011578,2]
[406876650,1772261440185,-500.0,0.000116,2]
[406876652,1772261440195,-281.27422717,0.0001161,2]
[406876654,1772261440205,-246.91345338,0.0001161,2]
[406876656,1772261440215,-150.0,0.0001161,2]
[406876658,1772261440224,-500.0,0.0001161,2]
[406876660,1772261440234,-500.0,0.00011655,2]
[406876662,1772261440244,-210.79603747,0.00011665,2]
[406876664,1772261440253,-500.0,0.00011665,2]
[406876666,1772261440263,-500.0,0.0001171,2]
[406876668,1772261440277,-500.0,0.0001171,2]
[406876670,1772261440289,-500.0,0.0001172,2]
[406876672,1772261440298,-2655.48248449,0.00011747,2]
[406876674,1772261440308,-500.0,0.00011765,2]
[406876676,1772261440318,-500.0,0.00011774,2]
[406876678,1772261440327,-500.0,0.0001182,2]
[406876680,1772261440337,-150.0,0.00011829,2]
[406876682,1772261440347,-500.0,0.00011829,2]
[406876684,1772261440356,-150.0,0.00011829,2]
[406876686,1772261440366,-150.0,0.00011829,2]
[406876688,1772261440376,-150.0,0.00011829,2]
[406876690,1772261440389,-150.0,0.00011829,2]
[406876692,1772261440398,-500.0,0.00011829,2]
[406876694,1772261440407,-500.0,0.00011874,2]
[406876696,1772261440416,-258.96996012,0.00011884,2]
[406876698,1772261440425,-574.74754567,0.00011884,2]
[406876700,1772261440434,-150.0,0.00011884,2]
[406876702,1772261440443,-150.0,0.00011884,2]
[406876704,1772261440452,-500.0,0.00011884,2]
[406876706,1772261440462,-1001.13389285,0.00011901,2]
[406876708,1772261440472,-12999.66583492,0.00011911,2]
[406876710,1772261440481,-500.0,0.00011929,2]
[406876712,1772261440490,-251.37506929,0.00011939,2]
[406876714,1772261440500,-210.6018127,0.00011939,2]
[406876716,1772261440509,-500.0,0.00011939,2]
[406876718,1772261440519,-166.66,0.00011939,2]
[406876720,1772261440531,-500.0,0.00011984,2]
[406876722,1772261440540,-500.0,0.00011994,2]
[406876724,1772261440550,-36909.54359121,0.00011997,2]
[406876726,1772261440559,-19176.02,0.00012011,2]
[406876728,1772261440569,-500.0,0.00012039,2]
[406876730,1772261440578,-500.0,0.00012048,2]
[406876732,1772261440588,-500.0,0.0001207,2]
[406876734,1772261440597,-500.0,0.00012094,2]
[406876736,1772261440606,-435.02,0.00012103,2]
[406876738,1772261440616,-458.85187211,0.00012103,2]
[406876740,1772261440625,-233.07874525,0.00012148,2]
[406876742,1772261440635,-7348.73262382,0.0001226,2]
[406876744,1772261440645,-166.66,0.00012309,2]
[406876746,1772261440654,-435.02,0.00012377,2]
[406876747,1772261440664,-1000.0,0.00012463,2]
[406876749,1772261440673,-12999.66583485,0.00012576,2]
[406876752,1772261440683,-435.02,0.00012651,2]
[406876754,1772261440694,-166.66,0.00012679,2]
[406876755,1772261440703,-1152.0,0.00012696,2]
[406876757,1772261440713,-435.02,0.00012925,2]
[406876759,1772261440723,-166.66,0.00013048,2]
[406876762,1772261440732,-1163.33996,0.00013139,2]
[406876763,1772261440743,-161.100606,0.00013139,2]
[406876765,1772261440753,-435.06421015,0.00013199,2]
[406876768,1772261440762,-7348.73262382,0.000132,2]
[406876770,1772261440775,-12999.66583485,0.00013242,2]
[406876773,1772261440785,-500.0,0.00013394,3]
[406876775,1772261440797,-1000.0,0.00013596,2]
[406876777,1772261440808,-362.7163988,0.00013698,2]
[406876779,1772261440817,-500.0,0.00013698,2]
[406876781,1772261440829,-259.96169612,0.00013698,2]
[406876783,1772261440838,-208.03686315,0.00013698,2]
[406876785,1772261440849,-1336.40306199,0.00013698,2]
[406876787,1772261440859,-500.0,0.00013698,2]
[406876789,1772261440868,-1336.40306199,0.00013698,2]
[406876791,1772261440878,-1336.40306199,0.00013698,2]
[406876793,1772261440887,-500.0,0.00013698,2]
[406876794,1772261440897,-1336.40306199,0.00013698,2]
[406876796,1772261440907,-500.0,0.00013698,2]
[406876798,1772261440917,-1336.40306199,0.00013698,2]
[406876801,1772261440928,-1336.40306199,0.00013698,2]
[406876803,1772261440938,-500.0,0.00013698,2]
[406876804,1772261440947,-1336.40306199,0.00013698,2]
[406876806,1772261440957,-1336.40306199,0.00013698,2]
[406876808,1772261440966,-231.32795231,0.00013698,2]
[406876810,1772261440976,-1336.40306199,0.00013698,2]
[406876812,1772261440985,-1336.40306199,0.00013698,2]
[406876815,1772261440995,-1336.40306199,0.00013698,2]
[406876816,1772261441004,-1336.40306199,0.00013698,2]
[406876818,1772261441014,-1336.40306199,0.00013698,2]
[406876821,1772261441026,-1336.40306199,0.00013698,2]
[406876823,1772261441036,-1336.40306199,0.00013698,2]
[406876825,1772261441046,-1336.40306199,0.00013698,2]
[406876827,1772261441055,-1336.40306199,0.00013698,2]
[406876828,1772261441065,-1336.40306199,0.00013698,2]
[406876831,1772261441074,-1336.40306199,0.00013698,2]
[406876832,1772261441084,-1336.40306199,0.00013698,2]
[406876834,1772261441093,-1336.40306199,0.00013698,2]
[406876836,1772261441102,-1336.40306199,0.00013698,2]
[406876838,1772261441111,-1336.40306199,0.00013698,2]
[406876841,1772261441121,-1336.40306199,0.00013698,2]
[406876843,1772261441131,-1336.40306199,0.00013698,2]
[406876845,1772261441140,-1336.40306199,0.00013698,2]
[406876847,1772261441150,-1336.40306199,0.00013698,2]
[406876849,1772261441159,-1336.40306199,0.00013698,2]
[406876851,1772261441169,-1336.40306199,0.00013698,2]
[406876853,1772261441178,-1336.40306199,0.00013698,2]
[406876855,1772261441188,-1336.40306199,0.00013698,2]
[406876857,1772261441197,-1336.40306199,0.00013698,2]
[406876859,1772261441207,-1336.40306199,0.00013698,2]
[406876861,1772261441216,-1336.40306199,0.00013698,2]
[406876863,1772261441225,-1336.40306199,0.00013698,2]
[406876865,1772261441235,-1336.40306199,0.00013698,2]
[406876867,1772261441244,-1336.40306199,0.00013698,2]
[406876869,1772261441254,-1336.40306199,0.00013698,2]
[406876871,1772261441264,-1336.40306199,0.00013698,2]
[406876873,1772261441276,-1336.40306199,0.00013698,2]
[406876875,1772261441285,-1336.40306199,0.00013698,2]
[406876877,1772261441296,-1336.40306199,0.00013698,2]
[406876879,1772261441305,-1336.40306199,0.00013698,2]
[406876881,1772261441315,-1336.40306199,0.00013698,2]
[406876883,1772261441325,-1336.40306199,0.00013698,2]
[406876885,1772261441335,-1336.40306199,0.00013698,2]
[406876887,1772261441344,-1336.40306199,0.00013698,2]
[406876889,1772261441354,-1336.40306199,0.00013698,2]
[406876890,1772261441364,-1336.40306199,0.00013698,2]
[406876891,1772261441374,-1336.40306199,0.00013698,2]
[406876892,1772261441384,-1345.65489714,0.00013698,2]
[406876893,1772261441393,-1345.65489714,0.00013698,2]
[406876894,1772261441403,-1345.65489714,0.00013698,2]
[406876895,1772261441413,-1345.65489714,0.00013698,2]
[406876896,1772261441423,-1345.65489714,0.00013698,2]
[406876897,1772261441433,-1345.65489714,0.00013698,2]
[406876898,1772261441443,-1345.65489714,0.00013698,2]
[406876899,1772261441453,-1345.65489714,0.00013698,2]
[406876900,1772261441463,-1345.65489714,0.00013698,2]
[406876901,1772261441472,-1345.65489714,0.00013698,2]
[406876902,1772261441482,-1345.65489714,0.00013698,2]
[406876903,1772261441493,-1345.65489714,0.00013698,2]
[406876904,1772261441503,-1345.65489714,0.00013698,2]
[406876905,1772261441514,-1345.65489714,0.00013698,2]
[406876906,1772261441527,-1345.65489714,0.00013698,2]
[406876907,1772261441540,-1345.65489714,0.00013698,2]
[406876908,1772261441550,-1345.65489714,0.00013698,2]
[406876909,1772261441561,-1345.65489714,0.00013698,2]
[406876910,1772261441571,-1345.65489714,0.00013698,2]
[406876911,1772261441581,-1345.65489714,0.00013698,2]
[406876912,1772261441594,-1345.65489714,0.00013698,2]
[406876913,1772261441605,-1345.65489714,0.00013698,2]
[406876914,1772261441615,-1345.65489714,0.00013698,2]
[406876915,1772261441624,-1345.65489714,0.00013698,2]
[406876916,1772261441634,-1345.65489714,0.00013698,2]
[406876917,1772261441644,-1345.65489714,0.00013698,2]
[406876918,1772261441654,-1345.65489714,0.00013698,2]
[406876919,1772261441664,-1345.65489714,0.00013698,2]
[406876920,1772261441674,-1408.37259711,0.00013698,2]
[406876921,1772261441683,-1408.37259711,0.00013698,2]
[406876922,1772261441693,-1408.37259711,0.00013698,2]
[406876923,1772261441703,-1408.37259711,0.00013698,2]
[406876924,1772261441712,-1408.37259711,0.00013698,2]
[406876925,1772261441721,-1408.37259711,0.00013698,2]
[406876926,1772261441731,-1408.37259711,0.00013698,2]
[406876927,1772261441741,-1408.37259711,0.00013698,2]
[406876928,1772261441750,-1408.37259711,0.00013698,2]
[406876929,1772261441760,-1408.37259711,0.00013698,2]
[406876930,1772261441770,-500.0,0.00013698,2]
[406876931,1772261441782,-500.0,0.00013698,2]
[406876932,1772261441791,-295.56,0.00013698,2]
[406876933,1772261441805,-500.0,0.00013698,2]
[406876934,1772261441816,-500.0,0.00013698,2]
[406876935,1772261441830,-500.0,0.00013698,2]
[406876936,1772261441839,-500.0,0.00013698,2]
[406876937,1772261441848,-500.0,0.00013698,2]
[406876938,1772261441860,-500.0,0.00013698,2]
[406876939,1772261441870,-505.24195647,0.00013698,2]
[406876940,1772261441879,-500.0,0.00013698,2]
[406876941,1772261441888,-500.0,0.00013698,2]
[406876942,1772261441898,-500.0,0.00013698,2]
[406876943,1772261441907,-500.0,0.00013698,2]
[406876944,1772261441917,-500.0,0.00013698,2]
[406876945,1772261441927,-500.0,0.00013698,2]
[406876946,1772261441936,-500.0,0.00013698,2]
[406876947,1772261441946,-336.44772745,0.00013698,2]
[406876948,1772261441955,-500.0,0.00013698,2]
[406876949,1772261441964,-500.0,0.00013698,2]
[406876950,1772261441974,-500.0,0.00013698,2]
[406876951,1772261441983,-500.0,0.00013698,2]
[406876952,1772261441993,-500.0,0.00013698,2]
[406876953,1772261442003,-500.0,0.00013698,2]
[406876954,1772261442012,-500.0,0.00013698,2]
[406876955,1772261442021,-500.0,0.00013698,2]
[406876956,1772261442035,-500.0,0.00013698,2]
[406876957,1772261442045,-322.41521615,0.00013698,2]
[406876959,1772261442054,-500.0,0.00013698,2]
[406876961,1772261442063,-287.81705473,0.00013698,2]
[406876962,1772261442072,-7613.06,0.00013699,2]
[406876965,1772261442082,-500.0,0.00013699,2]
[406876967,1772261442092,-500.0,0.00013699,2]
[406876969,1772261442101,-500.0,0.00013699,2]
[406876971,1772261442110,-500.0,0.00013699,2]
[406876985,1772261442242,-352.15203675,0.00013699,2]
[406876987,1772261442253,-380.87372073,0.00013699,2]
[406876989,1772261442263,-500.0,0.00013699,2]
[406876991,1772261442272,-500.0,0.00013699,2]
[406876992,1772261442284,-500.0,0.00013699,2]
[406876993,1772261442294,-500.0,0.00013699,2]
[406876994,1772261442303,-500.0,0.00013699,2]
[406876995,1772261442312,-468.68636614,0.00013699,2]
[406876996,1772261442323,-500.0,0.00013699,2]
[406876997,1772261442332,-500.0,0.00013699,2]
[406876998,1772261442342,-500.0,0.00013699,2]
[406876999,1772261442351,-503.4329372,0.00013699,2]
[406877000,1772261442361,-500.0,0.00013699,2]
[406877001,1772261442371,-500.0,0.00013699,2]
[406877002,1772261442380,-500.0,0.00013699,2]
[406877003,1772261442390,-500.0,0.00013699,2]
[406877004,1772261442400,-500.0,0.00013699,2]
[406877005,1772261442409,-500.0,0.00013699,2]
[406877006,1772261442418,-500.0,0.00013699,2]
[406877007,1772261442428,-160.97258953,0.00013699,2]
[406877009,1772261442437,-164.07470798,0.00013699,2]
[406877011,1772261442446,-500.0,0.00013699,2]
[406877012,1772261442456,-500.0,0.00013699,2]
[406877013,1772261442465,-500.0,0.00013699,2]
[406877014,1772261442474,-500.0,0.00013699,2]
[406877016,1772261442483,-308.79336882,0.00013699,2]
[406877018,1772261442493,-500.0,0.00013699,2]
[406877020,1772261442503,-335.80836064,0.00013699,2]
[406877022,1772261442513,-500.0,0.00013699,2]
[406877025,1772261442524,-500.0,0.00013699,2]
[406877027,1772261442540,-209.76903842,0.00013699,2]
[406877029,1772261442550,-337.91550103,0.00013699,2]
[406877032,1772261442560,-500.0,0.00013699,2]
[406877035,1772261442569,-500.0,0.00013699,2]
[406877037,1772261442579,-160.28869668,0.00013699,2]
[406877039,1772261442589,-500.0,0.00013699,2]
[406877041,1772261442598,-500.0,0.00013699,2]
[406877043,1772261442609,-500.0,0.00013699,2]
[406877045,1772261442618,-500.0,0.00013699,2]
[406877046,1772261442628,-500.0,0.00013699,2]
[406877048,1772261442638,-500.0,0.00013699,2]
[406877049,1772261442648,-500.0,0.00013699,2]
[406877051,1772261442658,-500.0,0.00013699,2]
[406877053,1772261442667,-500.0,0.00013699,2]
[406877055,1772261442677,-500.0,0.00013699,2]
[406877057,1772261442686,-500.0,0.00013699,2]
[406877059,1772261442695,-500.0,0.00013699,2]
[406877061,1772261442705,-500.0,0.00013699,2]
[406877063,1772261442715,-500.0,0.00013699,2]
[406877065,1772261442724,-500.0,0.00013699,2]
[406877067,1772261442734,-161.82,0.000137,2]
[406877068,1772261442743,-3415.86,0.000137,2]
[406877069,1772261442753,-3415.86,0.000137,2]
[406877070,1772261442762,-12999.66583485,0.00013907,2]
[406877071,1772261442771,-1613.0,0.00013966,2]
[406877072,1772261442785,-513.0,0.0001411,2]
[406877073,1772261442795,-7348.73262382,0.0001414,2]
[406877074,1772261442808,-253.23994536,0.0001423,2]
[406877075,1772261442818,-150.0,0.0001423,2]
[406877076,1772261442828,-150.0,0.0001423,2]
[406877077,1772261442838,-150.0,0.0001423,2]
[406877078,1772261442849,-1008.05702942,0.00014247,2]
[406877079,1772261442858,-593.78241863,0.00014247,2]
[406877080,1772261442867,-503.43569422,0.00014247,2]
[406877081,1772261442877,-501.76849561,0.00014247,2]
[406877082,1772261442886,-501.36718097,0.00014247,2]
[406877083,1772261442896,-500.87913707,0.00014247,2]
[406877084,1772261442905,-501.25349418,0.00014247,2]
[406877085,1772261442915,-1000.0,0.00014247,2]
[406877086,1772261442924,-1000.0,0.00014247,2]
[406877087,1772261442933,-493.55181504,0.00014247,2]
[406877088,1772261442943,-501.84370953,0.00014247,2]
[406877089,1772261442953,-1000.0,0.00014247,2]
[406877090,1772261442962,-1000.0,0.00014247,2]
[406877091,1772261442971,-1000.0,0.00014247,2]
[406877092,1772261442981,-501.4270061,0.00014247,2]
[406877093,1772261442990,-501.32593476,0.00014247,2]
[406877094,1772261442999,-185.91789535,0.00014247,2]
[406877095,1772261443008,-1001.07129304,0.00014247,2]
[406877096,1772261443018,-1000.92893184,0.00014247,2]
[406877097,1772261443030,-1000.0,0.00014247,2]
[406877098,1772261443040,-1010.19433144,0.00014247,2]
[406877099,1772261443050,-176.28801878,0.00014247,2]
[406877100,1772261443059,-604.79723351,0.00014247,2]
[406877101,1772261443069,-1001.17238446,0.00014247,2]
[406877102,1772261443079,-1002.48322638,0.00014247,2]
[406877103,1772261443088,-1003.24758094,0.00014247,2]
[406877104,1772261443097,-1001.13953676,0.00014247,2]
[406877105,1772261443107,-1001.81202346,0.00014247,2]
[406877106,1772261443116,-1000.0,0.00014247,2]
[406877107,1772261443126,-501.70249257,0.00014247,2]
[406877108,1772261443138,-1000.0,0.00014247,2]
[406877109,1772261443148,-1000.0,0.00014247,2]
[406877110,1772261443157,-1000.0,0.00014247,2]
[406877111,1772261443166,-1000.0,0.00014247,2]
[406877112,1772261443176,-1000.0,0.00014247,2]
[406877113,1772261443185,-1000.0,0.00014247,2]
[406877114,1772261443195,-503.10076377,0.00014247,2]
[406877115,1772261443205,-1005.73275507,0.00014247,2]
[406877116,1772261443214,-1000.0,0.00014247,2]
[406877117,1772261443224,-1000.0,0.00014247,2]
[406877118,1772261443234,-1000.0,0.00014247,2]
[406877119,1772261443243,-1001.12380707,0.00014247,2]
[406877121,1772261443253,-1000.0,0.00014247,2]
[406877123,1772261443262,-483.70432669,0.00014253,2]
[406877125,1772261443272,-150.0,0.00014285,2]
[406877126,1772261443284,-150.0,0.00014285,2]
[406877127,1772261443293,-150.0,0.00014285,2]
[406877128,1772261443303,-287.38563793,0.0001434,2]
[406877129,1772261443315,-150.0,0.0001434,2]
[406877130,1772261443324,-158.31265112,0.0001434,2]
[406877131,1772261443334,-500.0,0.00014383,2]
[406877132,1772261443343,-7613.06,0.00014384,2]
[406877133,1772261443353,-150.0,0.00014394,2]
[406877134,1772261443363,-12999.66583485,0.00014573,2]
[406877135,1772261443372,-151.0,0.00014634,2]
[406877136,1772261443383,-1261.91,0.00014728,2]
[406877137,1772261443393,-1500.0,0.00014795,2]
[406877138,1772261443402,-1501.66913587,0.00014795,2]
[406877139,1772261443411,-1500.0,0.00014795,2]
[406877140,1772261443421,-1501.31398906,0.00014795,2]
[406877141,1772261443431,-1217.87177273,0.00014795,2]
[406877142,1772261443440,-1509.53925467,0.00014795,2]
[406877143,1772261443450,-1618.86499239,0.00014795,2]
[406877144,1772261443460,-504.49415487,0.00014795,2]
[406877145,1772261443470,-541.26009197,0.00014795,2]
[406877146,1772261443480,-1500.0,0.00014795,2]
[406877147,1772261443489,-743.29162459,0.00014795,2]
[406877148,1772261443499,-1500.0,0.00014795,2]
[406877149,1772261443508,-1500.0,0.00014795,2]
[406877150,1772261443518,-500.0,0.00014795,2]
[406877151,1772261443530,-1500.0,0.00014795,2]
[406877152,1772261443540,-1500.0,0.00014795,2]
[406877153,1772261443550,-900.0,0.000149,5]
[406877154,1772261443560,-500.0,0.00014906,2]
[406877155,1772261443569,-150.0,0.00014906,2]
[406877156,1772261443579,-500.0,0.00014906,2]
[406877157,1772261443589,-150.0,0.00014906,2]
[406877158,1772261443606,-170.96140001,0.00014906,2]
[406877159,1772261443616,-155.59923113,0.00014906,2]
[406877160,1772261443627,-150.0,0.00014906,2]
[406877161,1772261443639,-150.0,0.00014906,2]
[406877162,1772261443649,-153.47951727,0.00014906,2]
[406877163,1772261443659,-150.0,0.00014906,2]
[406877164,1772261443668,-500.0,0.00014906,2]
[406877165,1772261443677,-500.0,0.00014961,2]
[406877166,1772261443687,-500.0,0.00014961,2]
[406877167,1772261443697,-150.0,0.00014961,2]
[406877168,1772261443706,-150.0,0.00014961,2]
[406877169,1772261443715,-150.0,0.00014961,2]
[406877170,1772261443725,-150.0,0.00014961,2]
[406877171,1772261443735,-150.0,0.00014961,2]
[406877172,1772261443745,-500.0,0.00014961,2]
[406877173,1772261443766,-221.2,0.00014968,2]
[406877174,1772261443782,-512.29524281,0.00015016,2]
[406877175,1772261443792,-500.0,0.00015016,2]
[406877176,1772261443806,-150.0,0.00015016,2]
[406877177,1772261443816,-226.25199945,0.00015016,2]
[406877178,1772261443830,-251.02541865,0.00015016,2]
[406877179,1772261443842,-150.0,0.00015016,2]
[406877180,1772261443853,-150.0,0.00015016,2]
[406877181,1772261443862,-500.0,0.00015016,2]
[406877182,1772261443873,-7613.06,0.00015068,2]
[406877183,1772261443882,-500.0,0.0001507,2]
[406877184,1772261443893,-150.0,0.0001507,2]
[406877185,1772261443903,-258.9731701,0.0001507,2]
[406877186,1772261443913,-150.0,0.0001507,2]
[406877187,1772261443923,-500.0,0.0001507,2]
[406877188,1772261443932,-7348.73262382,0.0001508,2]
[406877189,1772261443942,-500.0,0.00015125,2]
[406877190,1772261443951,-258.06666908,0.00015125,2]
[406877191,1772261443962,-191.4720797,0.00015125,2]
[406877192,1772261443971,-500.0,0.00015125,2]
[406877193,1772261443980,-500.0,0.0001518,2]
[406877194,1772261443991,-500.0,0.0001518,2]
[406877195,1772261444001,-158.77,0.0001518,2]
[406877196,1772261444011,-50000.0,0.0001519,2]
[406877197,1772261444020,-154.51645155,0.00015235,2]
[406877198,1772261444034,-515.01044141,0.00015235,2]
[406877199,1772261444044,-12999.66583485,0.00015238,2]
[406877200,1772261444055,-500.0,0.00015292,2]
[406877201,1772261444064,-19315.17,0.00015292,2]
[406877202,1772261444074,-9999.99,0.0001531,2]
[406877203,1772261444084,-1827.89337357,0.00015342,2]
[406877204,1772261444094,-2000.0,0.00015342,2]
[406877205,1772261444104,-2000.0,0.00015342,2]
[406877206,1772261444113,-2000.0,0.00015342,2]
[406877207,1772261444122,-2000.0,0.00015342,2]
[406877208,1772261444132,-1212.37829793,0.00015342,2]
[406877209,1772261444142,-1203.36470484,0.00015342,2]
[406877210,1772261444153,-2258.0,0.00015362,2]
[406877211,1772261444163,-15213.18696062,0.00015363,2]
[406877212,1772261444172,-9990.0,0.00015471,2]
[406877213,1772261444182,-7613.06,0.00015753,2]
[406877214,1772261444192,-2000.0,0.0001589,2]
[406877215,1772261444202,-779.13777388,0.0001589,2]
[406877216,1772261444212,-550.78546123,0.0001589,2]
[406877217,1772261444222,-2500.0,0.0001589,2]
[406877218,1772261444233,-12999.66583485,0.00015904,2]
[406877219,1772261444242,-5018.36116075,0.0001596,2]
[406877220,1772261444253,-7348.73262382,0.0001602,2]
[406877221,1772261444263,-7955.92,0.00016116,2]
[406877222,1772261444273,-8498.93860418,0.00016347,2]
[406877223,1772261444289,-500.0,0.00016436,2]
[406877224,1772261444299,-7613.06,0.00016438,2]
[406877225,1772261444308,-3000.0,0.00016438,2]
[406877226,1772261444318,-202.72942851,0.00016478,14]
[406877227,1772261444327,-221.2,0.00016542,2]
[406877228,1772261444336,-12999.66583485,0.00016569,2]
[406877229,1772261444345,-283.0,0.00016741,2]
[406877230,1772261444355,-2000.0,0.0001681,2]
[406877231,1772261444365,-283.0,0.00016855,2]
[406877232,1772261444374,-838.0,0.00016899,2]
[406877233,1772261444383,-2000.0,0.0001691,2]
[406877234,1772261444392,-283.0,0.00016919,2]
[406877235,1772261444402,-7348.73262382,0.0001696,2]
[406877236,1772261444411,-2174.30016618,0.00016974,2]
[406877237,1772261444421,-3500.0,0.00016986,2]
[406877238,1772261444430,-2000.0,0.0001701,2]
[406877239,1772261444440,-5507.95366483,0.000171,2]
[406877240,1772261444450,-5000.0,0.000171,2]
[406877241,1772261444459,-1500.0,0.0001711,2]
[406877242,1772261444468,-1500.0,0.0001711,2]
[406877243,1772261444478,-2632.101218,0.0001711,2]
[406877244,1772261444487,-12999.66583485,0.00017235,2]
[406877245,1772261444496,-579.151928,0.00017258,7]
[406877246,1772261444506,-1800.0,0.000173,6]
[406877247,1772261444515,-2700.0,0.000174,6]
[406877248,1772261444525,-283.0,0.00017418,2]
[406877249,1772261444539,-3009.18329139,0.00017437,2]
[406877250,1772261444549,-283.0,0.00017442,2]
[406877251,1772261444559,-283.0,0.00017481,2]
[406877252,1772261444568,-3600.0,0.000175,6]
[406877253,1772261444577,-1809.639939,0.00017519,7]
[406877254,1772261444595,-375.901416,0.00017519,7]
[406877255,1772261444608,-4000.0,0.00017534,2]
[406877256,1772261444617,-283.0,0.0001758,2]
[406877257,1772261444627,-4500.0,0.000176,6]
[406877258,1772261444636,-283.0,0.00017608,2]
[406877259,1772261444645,-283.0,0.00017631,2]
[406877260,1772261444655,-223.9163473,0.00017633,2]
[406877261,1772261444664,-1023.0292795,0.0001764,2]
[406877262,1772261444673,-1878.0763815,0.0001764,2]
[406877263,1772261444684,-283.0,0.00017667,2]
[406877264,1772261444693,-900.0,0.000177,6]
[406877265,1772261444702,-158.77,0.0001771,2]
[406877266,1772261444711,-283.0,0.00017727,2]
[406877267,1772261444721,-959.7671699,0.00017731,2]
[406877268,1772261444731,-2822.73754815,0.000178,2]
[406877269,1772261444740,-10000.0,0.000178,2]
[406877270,1772261444749,-9075.94324273,0.000178,2]
[406877271,1772261444759,-2281.15692049,0.000178,2]
[406877272,1772261444768,-10175.40517189,0.000178,2]
[406877273,1772261444781,-4353.28431392,0.000178,2]